fUST/lending_fUST_20250705
["ID","MTS","AMOUNT","RATE_DAILY","PERIOD"]
[369730781,1751716273404,-460.0,0.0002,2]
[369730782,1751716273414,-2359.3,0.0002,2]
[369730783,1751716273423,-5370.2,0.0002,2]
[369730784,1751716273432,-460.0,0.0002,2]
[369730785,1751716273442,-2290.79,0.0002,2]
[369730786,1751716273451,-460.0,0.0002,2]
[369730787,1751716273461,-460.0,0.0002,2]
[369730788,1751716273470,-460.0,0.0002,2]
[369730789,1751716273479,-795.87,0.0002,2]
[369730790,1751716273489,-460.0,0.0002,2]
[369730791,1751716273499,-460.0,0.0002,2]
[369730792,1751716273508,-460.0,0.0002,2]
[369730793,1751716273517,-460.0,0.0002,2]
[369730794,1751716273527,-460.0,0.0002,2]
[369730795,1751716273536,-460.0,0.0002,2]
[369730796,1751716273545,-460.0,0.0002,2]
[369730797,1751716273555,-585.86160151,0.0002,2]
[369730798,1751716273564,-225.97942804,0.0002,2]
[369730799,1751716273573,-460.0,0.0002,2]
[369730800,1751716273583,-4000.0,0.0002,4]
[369730801,1751716273592,-460.0,0.0002,2]
[369730802,1751716273601,-152.01130235,0.0002,2]
[369730803,1751716273611,-460.0,0.0002,2]
[369730804,1751716273620,-552.97,0.0002,2]
[369730805,1751716273629,-460.0,0.0002,2]
[369730806,1751716273639,-460.0,0.0002,2]
[369730807,1751716273648,-460.0,0.0002,2]
[369730808,1751716273657,-1590.72,0.0002,2]
[369730809,1751716273666,-460.0,0.0002,2]
[369730810,1751716273675,-460.0,0.0002,2]
[369730811,1751716273685,-460.0,0.0002,2]
[369730812,1751716273695,-460.0,0.0002,2]
[369730813,1751716273708,-2510.14,0.0002,2]
[369730814,1751716273717,-460.0,0.0002,2]
[369730815,1751716273727,-460.0,0.0002,2]
[369730816,1751716273737,-1367.67,0.0002,2]
[369730817,1751716273748,-460.0,0.0002,2]
[369730818,1751716273757,-460.0,0.0002,2]
[369730819,1751716273767,-966.45,0.0002,2]
[369730820,1751716273776,-460.0,0.0002,2]
[369730821,1751716273787,-460.0,0.0002,2]
[369730822,1751716273796,-460.19069236,0.0002,2]
[369730823,1751716273806,-226.69643827,0.0002,2]
[369730824,1751716273815,-460.0,0.0002,2]
[369730825,1751716273825,-460.0,0.0002,2]
[369730826,1751716273834,-460.0,0.0002,2]
[369730827,1751716273843,-502.0,0.0002,2]
[369730828,1751716273852,-535.41,0.0002,2]
[369730829,1751716273862,-460.0,0.0002,2]
[369730830,1751716273872,-405.51634911,0.00020021,2]
[369730831,1751716273881,-1000.0,0.00020021,2]
[369730832,1751716273891,-151.0,0.00020021,2]
[369730833,1751716273901,-151.0,0.00020021,2]
[369730834,1751716273912,-166.736868,0.00020021,2]
[369730835,1751716273922,-500.0,0.00020128,2]
[369730836,1751716273931,-500.0,0.00020159,2]
[369730837,1751716273940,-500.0,0.00020159,2]
[369730838,1751716273949,-405.48418504,0.00020159,2]
[369730839,1751716273959,-165.906504,0.0002016,3]
[369730840,1751716273968,-500.0,0.00020172,2]
[369730841,1751716273979,-500.33332493,0.00020172,2]
[369730842,1751716273990,-181.52665766,0.00020172,2]
[369730843,1751716274000,-500.0,0.00020172,2]
[369730844,1751716274009,-500.0,0.00020172,2]
[369730845,1751716274019,-500.0,0.00020172,2]
[369730846,1751716274028,-500.0,0.00020172,2]
[369730847,1751716274037,-500.0,0.00020172,2]
[369730848,1751716274047,-500.0,0.00020172,2]
[369730849,1751716274056,-548.68139634,0.00020172,2]
[369730850,1751716274066,-346.88674891,0.00020172,2]
[369730851,1751716274075,-500.0,0.00020172,2]
[369730852,1751716274084,-500.15731438,0.00020172,2]
[369730853,1751716274094,-500.0,0.00020172,2]
[369730854,1751716274103,-500.0,0.00020172,2]
[369730855,1751716274112,-500.0,0.00020172,2]
[369730856,1751716274121,-500.0,0.00020172,2]
[369730857,1751716274131,-500.0,0.00020172,2]
[369730858,1751716274142,-500.0,0.00020172,2]
[369730859,1751716274153,-500.0,0.00020172,2]
[369730860,1751716274164,-500.0,0.00020172,2]
[369730861,1751716274173,-500.0,0.00020172,2]
[369730862,1751716274182,-500.0,0.00020172,2]
[369730863,1751716274192,-500.0,0.00020172,2]
[369730864,1751716274201,-500.0,0.00020172,2]
[369730865,1751716274211,-500.0,0.00020172,2]
[369730866,1751716274220,-500.0,0.00020172,2]
[369730867,1751716274230,-501.57110748,0.00020172,2]
[369730868,1751716274240,-500.0,0.00020172,2]
[369730869,1751716274249,-500.0,0.00020172,2]
[369730870,1751716274258,-500.0,0.00020172,2]
[369730871,1751716274267,-330.91975432,0.00020179,2]
[369730872,1751716274277,-500.0,0.00020179,2]
[369730873,1751716274286,-500.0,0.00020179,2]
[369730874,1751716274295,-500.0,0.00020179,2]
[369730875,1751716274304,-500.0,0.00020179,2]
[369730876,1751716274315,-500.0,0.00020179,2]
[369730877,1751716274326,-500.0,0.00020179,2]
[369730878,1751716274336,-500.0,0.00020179,2]
[369730879,1751716274345,-8173.74888204,0.00020183,2]
[369730880,1751716274355,-205.49733553,0.00020194,2]
[369730881,1751716274365,-232.4,0.00020206,4]
[369730882,1751716274375,-1500.0,0.00020268,2]
[369730883,1751716274384,-1500.0,0.00020268,2]
[369730884,1751716274393,-1315.32243225,0.00020268,2]
[369730885,1751716274403,-1500.0,0.00020268,2]
[369730886,1751716274413,-1500.0,0.00020268,2]
[369730887,1751716274423,-1500.0,0.00020268,2]
[369730888,1751716274432,-460.0,0.00020273,2]
[369730889,1751716274441,-460.0,0.00020273,2]
[369730890,1751716274451,-460.0,0.00020273,2]
[369730891,1751716274460,-460.14,0.00020273,2]
[369730892,1751716274469,-171.19427,0.00020273,2]
[369730893,1751716274478,-171.194277,0.00020273,2]
[369730894,1751716274487,-460.0,0.00020273,2]
[369730895,1751716274497,-150.62293564,0.00020273,2]
[369730896,1751716274506,-460.0,0.00020273,2]
[369730897,1751716274516,-460.0,0.00020273,2]
[369730898,1751716274526,-460.0,0.00020273,2]
[369730899,1751716274535,-460.0,0.00020273,2]
[369730900,1751716274545,-460.0,0.00020273,2]
[369730901,1751716274555,-225.76,0.00020273,2]
[369730902,1751716274565,-460.0,0.00020273,2]
[369730903,1751716274574,-460.0,0.00020273,2]
[369730904,1751716274584,-460.0,0.00020273,2]
[369730905,1751716274594,-460.0,0.00020273,2]
[369730906,1751716274603,-460.0,0.00020273,2]
[369730907,1751716274612,-460.0,0.00020273,2]
[369730908,1751716274622,-460.0,0.00020273,2]
[369730909,1751716274631,-460.0,0.00020273,2]
[369730910,1751716274640,-174.10732278,0.00020273,2]
[369730911,1751716274650,-460.0,0.00020273,2]
[369730912,1751716274659,-460.0,0.00020273,2]
[369730913,1751716274668,-460.0,0.00020273,2]
[369730914,1751716274677,-460.0,0.00020273,2]
[369730915,1751716274686,-460.0,0.00020273,2]
[369730916,1751716274696,-460.0,0.00020273,2]
[369730917,1751716274705,-562.0,0.00020273,2]
[369730918,1751716274715,-460.0,0.00020273,2]
[369730919,1751716274724,-264.5,0.00020273,2]
[369730920,1751716274734,-460.0,0.00020273,2]
[369730921,1751716274743,-460.0,0.00020273,2]
[369730922,1751716274753,-232.88430176,0.00020273,2]
[369730923,1751716274762,-460.0,0.00020273,2]
[369730924,1751716274772,-460.0,0.00020273,2]
[369730925,1751716274782,-460.0,0.00020273,2]
[369730926,1751716274792,-460.0,0.00020273,2]
[369730927,1751716274801,-460.0,0.00020273,2]
[369730928,1751716274810,-460.0,0.00020273,2]
[369730929,1751716274819,-460.0,0.00020273,2]
[369730930,1751716274829,-222.38,0.00020273,2]
[369730931,1751716274838,-460.0,0.00020273,2]
[369730932,1751716274847,-460.0,0.00020273,2]
[369730933,1751716274856,-460.0,0.00020273,2]
[369730934,1751716274865,-460.0,0.00020273,2]
[369730935,1751716274875,-460.0,0.00020273,2]
[369730936,1751716274884,-634.18,0.00020273,2]
[369730937,1751716274893,-460.0,0.00020273,2]
[369730938,1751716274902,-460.0,0.00020273,2]
[369730939,1751716274911,-460.0,0.00020273,2]
[369730940,1751716274920,-406.60831122,0.00020273,2]
[369730941,1751716274930,-460.0,0.00020273,2]
[369730942,1751716274939,-173.78674107,0.00020273,2]
[369730943,1751716274948,-460.0,0.00020273,2]
[369730944,1751716274957,-460.0,0.00020273,2]
[369730945,1751716274966,-460.0,0.00020273,2]
[369730946,1751716274975,-460.0,0.00020273,2]
[369730947,1751716274985,-460.0,0.00020273,2]
[369730948,1751716274994,-460.0,0.00020273,2]
[369730949,1751716275003,-460.0,0.00020273,2]
[369730950,1751716275013,-460.0,0.00020273,2]
[369730951,1751716275022,-811.83,0.00020273,2]
[369730952,1751716275031,-460.0,0.00020273,2]
[369730953,1751716275040,-460.0,0.00020273,2]
[369730954,1751716275049,-460.0,0.00020273,2]
[369730955,1751716275058,-460.0,0.00020273,2]
[369730956,1751716275067,-460.0,0.00020273,2]
[369730957,1751716275077,-892.86,0.00020273,2]
[369730958,1751716275086,-460.0,0.00020273,2]
[369730959,1751716275097,-460.0,0.00020273,2]
[369730960,1751716275107,-460.0,0.00020273,2]
[369730961,1751716275117,-460.0,0.00020273,2]
[369730962,1751716275128,-460.0,0.00020273,2]
[369730963,1751716275138,-460.0,0.00020273,2]
[369730964,1751716275147,-833.07,0.00020273,2]
[369730965,1751716275158,-460.0,0.00020273,2]
[369730966,1751716275168,-460.0,0.00020273,2]
[369730967,1751716275180,-460.0,0.00020273,2]
[369730968,1751716275190,-460.0,0.00020273,2]
[369730969,1751716275200,-460.0,0.00020273,2]
[369730970,1751716275210,-460.0,0.00020273,2]
[369730971,1751716275221,-460.0,0.00020273,2]
[369730972,1751716275230,-460.0,0.00020273,2]
[369730973,1751716275240,-460.0,0.00020273,2]
[369730974,1751716275380,-460.0,0.00020273,2]
[369730975,1751716275389,-384.31122622,0.00020273,2]
[369730976,1751716275398,-460.0,0.00020273,2]
[369730977,1751716275407,-460.0,0.00020273,2]
[369730978,1751716275416,-460.0,0.00020273,2]
[369730979,1751716275425,-460.0,0.00020273,2]
[369730980,1751716275434,-460.0,0.00020273,2]
[369730981,1751716275443,-609.49,0.00020273,2]
[369730982,1751716275452,-654.47,0.00020273,2]
[369730983,1751716275462,-460.0,0.00020273,2]
[369730984,1751716275471,-460.0,0.00020273,2]
[369730985,1751716275480,-460.0,0.00020273,2]
[369730986,1751716275488,-460.0,0.00020273,2]
[369730987,1751716275498,-361.81124742,0.00020273,2]
[369730988,1751716275508,-290.96721089,0.00020273,2]
[369730989,1751716275517,-460.0,0.00020273,2]
[369730990,1751716275526,-396.03852585,0.00020273,2]
[369730991,1751716275535,-384.41829106,0.00020273,2]
[369730992,1751716275544,-460.0,0.00020273,2]
[369730993,1751716275553,-460.0,0.00020273,2]
[369730994,1751716275562,-286.05,0.00020273,2]
[369730995,1751716275571,-460.0,0.00020273,2]
[369730996,1751716275580,-164.72,0.00020273,2]
[369730997,1751716275589,-460.0,0.00020273,2]
[369730998,1751716275599,-460.0,0.00020273,2]
[369730999,1751716275608,-460.0,0.00020273,2]
[369731000,1751716275617,-460.0,0.00020273,2]
[369731001,1751716275626,-460.0,0.00020273,2]
[369731002,1751716275635,-346.0,0.00020273,2]
[369731003,1751716275644,-460.0,0.00020273,2]
[369731004,1751716275653,-460.0,0.00020273,2]
[369731005,1751716275662,-460.0,0.00020273,2]
[369731006,1751716275671,-460.0,0.00020273,2]
[369731007,1751716275680,-272.11459268,0.00020273,2]
[369731008,1751716275689,-471.36,0.00020273,2]
[369731009,1751716275698,-460.0,0.00020273,2]
[369731010,1751716275712,-460.0,0.00020273,2]
[369731011,1751716275721,-460.0,0.00020273,2]
[369731012,1751716275731,-460.0,0.00020273,2]
[369731013,1751716275740,-460.0,0.00020273,2]
[369731014,1751716275749,-460.0,0.00020273,2]
[369731015,1751716275758,-460.0,0.00020273,2]
[369731016,1751716275768,-460.0,0.00020273,2]
[369731017,1751716275777,-460.0,0.00020273,2]
[369731018,1751716275786,-460.0,0.00020273,2]
[369731019,1751716275797,-460.0,0.00020273,2]
[369731020,1751716275806,-460.0,0.00020273,2]
[369731021,1751716275816,-460.0,0.00020273,2]
[369731022,1751716275825,-460.0,0.00020273,2]
[369731023,1751716275835,-506.1,0.00020273,2]
[369731024,1751716275844,-462.71322776,0.00020273,2]
[369731025,1751716275853,-460.0,0.00020273,2]
[369731026,1751716275862,-460.0,0.00020273,2]
[369731027,1751716275872,-460.0,0.00020273,2]
[369731028,1751716275882,-460.0,0.00020273,2]
[369731029,1751716275891,-460.0,0.00020273,2]
[369731030,1751716275900,-460.0,0.00020273,2]
[369731031,1751716275910,-460.0,0.00020273,2]
[369731032,1751716275920,-460.0,0.00020273,2]
[369731033,1751716275929,-802.5,0.00020273,2]
[369731034,1751716275939,-306.99578432,0.00020273,2]
[369731035,1751716275948,-684.53,0.00020273,2]
[369731036,1751716275957,-460.0,0.00020273,2]
[369731037,1751716275967,-460.0,0.00020273,2]
[369731038,1751716275976,-460.0,0.00020273,2]
[369731039,1751716275985,-460.0,0.00020273,2]
[369731040,1751716275995,-500.0,0.00020273,2]
[369731041,1751716276005,-460.0,0.00020273,2]
[369731042,1751716276013,-807.62,0.00020273,2]
[369731043,1751716276023,-460.0,0.00020273,2]
[369731044,1751716276033,-460.0,0.00020273,2]
[369731045,1751716276042,-460.0,0.00020273,2]
[369731046,1751716276052,-460.0,0.00020273,2]
[369731047,1751716276061,-530.28,0.00020273,2]
[369731048,1751716276070,-240.0644433,0.00020273,2]
[369731049,1751716276080,-460.0,0.00020273,2]
[369731050,1751716276089,-460.0,0.00020273,2]
[369731051,1751716276098,-460.0,0.00020273,2]
[369731052,1751716276108,-460.0,0.00020273,2]
[369731053,1751716276117,-460.0,0.00020273,2]
[369731054,1751716276127,-460.0,0.00020273,2]
[369731055,1751716276139,-460.0,0.00020273,2]
[369731056,1751716276149,-980.52,0.00020273,2]
[369731057,1751716276158,-460.0,0.00020273,2]
[369731058,1751716276167,-460.0,0.00020273,2]
[369731059,1751716276177,-460.0,0.00020273,2]
[369731060,1751716276186,-460.0,0.00020273,2]
[369731061,1751716276196,-460.0,0.00020273,2]
[369731062,1751716276205,-460.0,0.00020273,2]
[369731063,1751716276215,-460.0,0.00020273,2]
[369731064,1751716276223,-460.0,0.00020273,2]
[369731065,1751716276233,-460.0,0.00020273,2]
[369731066,1751716276244,-460.0,0.00020273,2]
[369731067,1751716276255,-460.0,0.00020273,2]
[369731068,1751716276264,-460.0,0.00020273,2]
[369731069,1751716276274,-460.0,0.00020273,2]
[369731070,1751716276284,-460.0,0.00020273,2]
[369731071,1751716276296,-460.0,0.00020273,2]
[369731072,1751716276306,-460.0,0.00020273,2]
[369731073,1751716276318,-460.0,0.00020273,2]
[369731074,1751716276328,-460.0,0.00020273,2]
[369731075,1751716276338,-460.0,0.00020273,2]
[369731076,1751716276347,-465.95001143,0.00020273,2]
[369731077,1751716276357,-460.0,0.00020273,2]
[369731078,1751716276367,-944.11,0.00020273,2]
[369731079,1751716276376,-204.98472858,0.00020273,2]
[369731080,1751716276386,-1412.58,0.00020273,2]
[369731081,1751716276396,-515.20110158,0.00020273,2]
[369731082,1751716276409,-460.0,0.00020273,2]
[369731083,1751716276418,-460.0,0.00020273,2]
[369731084,1751716276428,-460.0,0.00020273,2]
[369731085,1751716276437,-460.0,0.00020273,2]
[369731086,1751716276447,-460.0,0.00020273,2]
[369731087,1751716276456,-460.0,0.00020273,2]
[369731088,1751716276466,-460.0,0.00020273,2]
[369731089,1751716276475,-495.76,0.00020273,2]
[369731090,1751716276484,-460.0,0.00020273,2]
[369731091,1751716276494,-1961.35,0.00020273,2]
[369731092,1751716276503,-460.0,0.00020273,2]
[369731093,1751716276512,-460.0,0.00020273,2]
[369731094,1751716276521,-323.18,0.00020273,2]
[369731095,1751716276532,-460.0,0.00020273,2]
[369731096,1751716276542,-460.0,0.00020273,2]
[369731097,1751716276551,-460.0,0.00020273,2]
[369731098,1751716276561,-441.27456577,0.00020273,2]
[369731099,1751716276571,-478.77228892,0.00020273,2]
[369731100,1751716276581,-460.0,0.00020273,2]
[369731101,1751716276591,-460.0,0.00020273,2]
[369731102,1751716276603,-3391.17,0.00020273,2]
[369731103,1751716276612,-460.0,0.00020273,2]
[369731104,1751716276622,-4108.2,0.00020273,2]
[369731105,1751716276632,-1010.40171051,0.00020273,2]
[369731106,1751716276643,-546.54,0.00020273,2]
[369731107,1751716276653,-732.65,0.00020273,2]
[369731108,1751716276662,-460.0,0.00020273,2]
[369731109,1751716276671,-460.0,0.00020273,2]
[369731110,1751716276681,-1421.32,0.00020273,2]
[369731111,1751716276690,-460.0,0.00020273,2]
[369731112,1751716276701,-460.0,0.00020273,2]
[369731113,1751716276712,-460.0,0.00020273,2]
[369731114,1751716276721,-599.44,0.00020273,2]
[369731115,1751716276730,-460.0,0.00020273,2]
[369731116,1751716276739,-460.0,0.00020273,2]
[369731117,1751716276749,-460.0,0.00020273,2]
[369731118,1751716276758,-460.0,0.00020273,2]
[369731119,1751716276767,-460.0,0.00020273,2]
[369731120,1751716276776,-460.0,0.00020273,2]
[369731121,1751716276786,-418.24402422,0.00020273,2]
[369731122,1751716276795,-460.0,0.00020273,2]
[369731123,1751716276805,-460.0,0.00020273,2]
[369731124,1751716276816,-460.0,0.00020273,2]
[369731125,1751716276825,-849.19,0.00020273,2]
[369731126,1751716276835,-460.0,0.00020273,2]
[369731127,1751716276844,-495.69,0.00020273,2]
[369731128,1751716276854,-461.42434248,0.00020273,2]
[369731129,1751716276864,-450.14619455,0.00020273,2]
[369731130,1751716276874,-683.58,0.00020273,2]
[369731131,1751716276884,-460.0,0.00020273,2]
[369731132,1751716276894,-460.0,0.00020273,2]
[369731133,1751716276903,-460.0,0.00020273,2]
[369731134,1751716276914,-460.0,0.00020273,2]
[369731135,1751716276922,-460.0,0.00020273,2]
[369731136,1751716276932,-460.0,0.00020273,2]
[369731137,1751716276941,-460.0,0.00020273,2]
[369731138,1751716276951,-460.0,0.00020273,2]
[369731139,1751716276960,-460.0,0.00020273,2]
[369731140,1751716276970,-460.0,0.00020273,2]
[369731141,1751716276980,-684.37,0.00020273,2]
[369731142,1751716276991,-460.0,0.00020273,2]
[369731143,1751716277002,-460.0,0.00020273,2]
[369731144,1751716277012,-460.0,0.00020273,2]
[369731145,1751716277022,-460.0,0.00020273,2]
[369731146,1751716277032,-460.0,0.00020273,2]
[369731147,1751716277041,-460.0,0.00020273,2]
[369731148,1751716277050,-460.0,0.00020273,2]
[369731149,1751716277059,-601.97,0.00020273,2]
[369731150,1751716277068,-460.0,0.00020273,2]
[369731151,1751716277077,-460.0,0.00020273,2]
[369731152,1751716277087,-460.0,0.00020273,2]
[369731153,1751716277097,-1260.38,0.00020273,2]
[369731154,1751716277106,-460.0,0.00020273,2]
[369731155,1751716277116,-1381.61,0.00020273,2]
[369731156,1751716277125,-460.0,0.00020273,2]
[369731157,1751716277135,-460.0,0.00020273,2]
[369731158,1751716277144,-2300.14,0.00020273,2]
[369731159,1751716277154,-425.05394956,0.00020273,2]
[369731160,1751716277164,-460.0,0.00020273,2]
[369731161,1751716277175,-2636.08,0.00020273,2]
[369731162,1751716277185,-954.6,0.00020273,2]
[369731163,1751716277196,-460.0,0.00020273,2]
[369731164,1751716277205,-460.0,0.00020273,2]
[369731165,1751716277215,-2273.45,0.00020273,2]
[369731166,1751716277225,-460.0,0.00020273,2]
[369731167,1751716277235,-650.68,0.00020273,2]
[369731168,1751716277244,-460.0,0.00020273,2]
[369731169,1751716277254,-460.0,0.00020273,2]
[369731170,1751716277264,-460.0,0.00020273,2]
[369731171,1751716277274,-460.0,0.00020273,2]
[369731172,1751716277283,-460.0,0.00020273,2]
[369731173,1751716277293,-460.0,0.00020273,2]
[369731174,1751716277302,-460.0,0.00020273,2]
[369731175,1751716277311,-460.0,0.00020273,2]
[369731176,1751716277320,-460.0,0.00020273,2]
[369731177,1751716277331,-4788.01,0.00020273,2]
[369731178,1751716277341,-460.0,0.00020273,2]
[369731179,1751716277351,-460.0,0.00020273,2]
[369731180,1751716277360,-460.0,0.00020273,2]
[369731181,1751716277369,-460.0,0.00020273,2]
[369731182,1751716277379,-460.0,0.00020273,2]
[369731183,1751716277389,-460.0,0.00020273,2]
[369731184,1751716277399,-460.0,0.00020273,2]
[369731185,1751716277408,-460.0,0.00020273,2]
[369731186,1751716277418,-3046.35,0.00020273,2]
[369731187,1751716277427,-538.40196311,0.00020273,2]
[369731188,1751716277438,-460.0,0.00020273,2]
[369731189,1751716277447,-460.0,0.00020273,2]
[369731190,1751716277456,-466.69,0.00020273,2]
[369731191,1751716277466,-460.0,0.00020273,2]
[369731192,1751716277476,-460.0,0.00020273,2]
[369731193,1751716277485,-517.98,0.00020273,2]
[369731194,1751716277494,-460.0,0.00020273,2]
[369731195,1751716277504,-460.0,0.00020273,2]
[369731196,1751716277513,-852.78,0.00020273,2]
[369731197,1751716277523,-291.27209084,0.00020273,2]
[369731198,1751716277532,-460.0,0.00020273,2]
[369731199,1751716277542,-460.0,0.00020273,2]
[369731200,1751716277551,-460.0,0.00020273,2]
[369731201,1751716277560,-460.0,0.00020273,2]
[369731202,1751716277570,-460.0,0.00020273,2]
[369731203,1751716277579,-460.0,0.00020273,2]
[369731204,1751716277589,-692.82,0.00020273,2]
[369731205,1751716277598,-536.33,0.00020273,2]
[369731206,1751716277607,-460.0,0.00020273,2]
[369731207,1751716277617,-491.81,0.00020273,2]
[369731208,1751716277626,-468.57,0.00020273,2]
[369731209,1751716277635,-460.0,0.00020273,2]
[369731210,1751716277645,-460.0,0.00020273,2]
[369731211,1751716277654,-460.0,0.00020273,2]
[369731212,1751716277663,-460.0,0.00020273,2]
[369731213,1751716277672,-460.0,0.00020273,2]
[369731214,1751716277681,-460.0,0.00020273,2]
[369731215,1751716277690,-2133.69,0.00020273,2]
[369731216,1751716277700,-460.0,0.00020273,2]
[369731217,1751716277711,-460.0,0.00020273,2]
[369731218,1751716277720,-460.0,0.00020273,2]
[369731219,1751716277730,-460.0,0.00020273,2]
[369731220,1751716277740,-460.0,0.00020273,2]
[369731221,1751716277749,-460.0,0.00020273,2]
[369731222,1751716277759,-460.0,0.00020273,2]
[369731223,1751716277768,-460.0,0.00020273,2]
[369731224,1751716277777,-460.0,0.00020273,2]
[369731225,1751716277786,-460.0,0.00020273,2]
[369731226,1751716277796,-460.0,0.00020273,2]
[369731227,1751716277805,-2359.3,0.00020273,2]
[369731228,1751716277814,-5370.2,0.00020273,2]
[369731229,1751716277824,-460.0,0.00020273,2]
[369731230,1751716277834,-2290.79,0.00020273,2]
[369731231,1751716277843,-465.64309169,0.00020273,2]
[369731232,1751716277852,-460.0,0.00020273,2]
[369731233,1751716277862,-795.87,0.00020273,2]
[369731234,1751716277871,-460.0,0.00020273,2]
[369731235,1751716277881,-460.0,0.00020273,2]
[369731236,1751716277890,-460.0,0.00020273,2]
[369731237,1751716277899,-460.0,0.00020273,2]
[369731238,1751716277910,-460.0,0.00020273,2]
[369731239,1751716277921,-460.0,0.00020273,2]
[369731240,1751716277930,-460.0,0.00020273,2]
[369731241,1751716277939,-460.0,0.00020273,2]
[369731242,1751716277949,-460.0,0.00020273,2]
[369731243,1751716277958,-460.0,0.00020273,2]
[369731244,1751716277967,-460.0,0.00020273,2]
[369731245,1751716277976,-460.0,0.00020273,2]
[369731246,1751716277986,-460.0,0.00020273,2]
[369731247,1751716277996,-1590.72,0.00020273,2]
[369731248,1751716278006,-460.0,0.00020273,2]
[369731249,1751716278016,-460.0,0.00020273,2]
[369731250,1751716278026,-461.20086993,0.00020273,2]
[369731251,1751716278036,-460.0,0.00020273,2]
[369731252,1751716278046,-2510.14,0.00020273,2]
[369731253,1751716278057,-460.0,0.00020273,2]
[369731254,1751716278067,-460.0,0.00020273,2]
[369731255,1751716278076,-1367.67,0.00020273,2]
[369731256,1751716278086,-460.0,0.00020273,2]
[369731257,1751716278095,-460.0,0.00020273,2]
[369731258,1751716278105,-966.45,0.00020273,2]
[369731259,1751716278114,-460.0,0.00020273,2]
[369731260,1751716278123,-460.0,0.00020273,2]
[369731261,1751716278132,-460.0,0.00020273,2]
[369731262,1751716278141,-460.0,0.00020273,2]
[369731263,1751716278151,-460.0,0.00020273,2]
[369731264,1751716278160,-535.41,0.00020273,2]
[369731265,1751716278170,-421.83,0.00020273,2]
[369731266,1751716278179,-968.064,0.00020279,2]
[369731267,1751716278189,-2152.0,0.00020279,2]
[369731268,1751716278198,-646.0,0.00020279,2]
[369731269,1751716278207,-215.0738,0.00020358,2]
[369731270,1751716278217,-881.0,0.00020386,2]
[369731271,1751716278226,-232.4,0.00020414,4]
[369731272,1751716278236,-166.49643125,0.00020438,2]
[369731273,1751716278246,-411.0,0.00020477,2]
[369731274,1751716278255,-205.49733553,0.00020488,3]
[369731275,1751716278265,-411.0,0.00020504,2]
[369731276,1751716278275,-174.845259,0.00020533,5]
[369731277,1751716278285,-151.0,0.00020547,2]
[369731278,1751716278294,-151.0,0.00020547,2]
[369731279,1751716278304,-597.02,0.00020547,2]
[369731280,1751716278313,-460.0,0.00020547,2]